[Event "Summer Prague Open A 2020"]
[Site "Prague"]
[Date "2020.08.11"]
[Round "5.7"]
[White "Toman, Ondrej"]
[Black "Roseneck, Jonas"]
[Result "0-1"]
[ECO "A45"]
[WhiteElo "2217"]
[BlackElo "2416"]
[Annotator "ChessBase"]
[PlyCount "101"]
[EventDate "2020.08.08"]
[EventCountry "CZE"]
[SourceTitle "playchess.com"]
[Source "ChessBase"]
[SourceQuality "1"]
[TimeControl "40/5400+30:1800+30"]

1. d4 {[%emt 0:00:00]} Nf6 {[%emt 0:00:00]} 2. Bf4 {[%emt 0:00:00]} d5 {[%emt 0:00:00]} 3. e3 {[%emt 0:00:00]} e6 {[%emt 0:00:00]} 4. Nf3 {[%emt 0:00:00]} Bd6 {[%emt 0:00:00]} 5. Nbd2 {[%emt 0:00:41]} O-O {[%emt 0:00:06]} 6. Bg3 {[%emt 0:00:23]} c5 {[%emt 0:03:17]} 7. c3 {[%emt 0:00:03]} Qc7 {[%emt 0:01:46]} 8. dxc5 {[%emt 0:00:23]} Qxc5 {[%emt 0:02:20]} 9. Bd3 {[%emt 0:00:10]} Nbd7 {[%emt 0:05:07]} 10. e4 {[%emt 0:03:15]} Bxg3 {[%emt 0:08:44]} 11. hxg3 {[%emt 0:00:04]} dxe4 {[%emt 0:00:05]} 12. Bxe4 {[%emt 0:00:55]} h6 {[%emt 0:05:11]} 13. Qe2 {[%emt 0:06:34]} Qa5 {[%emt 0:08:28]} 14. Nc4 {[%emt 0:14:48]} Qc7 {[%emt 0:02:42]} 15. O-O-O {[%emt 0:05:53]} Nxe4 {[%emt 0:03:50]} 16. Qxe4 {[%emt 0:00:29]} Nf6 {[%emt 0:00:28]} 17. Qf4 {[%emt 0:04:03]} Qxf4+ {[%emt 0:01:56]} 18. gxf4 {[%emt 0:00:53]} b6 {[%emt 0:01:19]} 19. Nd6 {[%emt 0:02:18]} Ba6 {[%emt 0:02:53]} 20. Rd4 {[%emt 0:10:38]} Rad8 {[%emt 0:08:24]} 21. Ne5 {[%emt 0:05:18]} Nd5 {[%emt 0:01:20]} 22. Ndc4 {[%emt 0:05:10]} Ne7 {[%emt 0:12:52]} 23. Rhd1 {[%emt 0:03:39]} Rxd4 {[%emt 0:01:00]} 24. Rxd4 {[%emt 0:00:06]} f6 {[%emt 0:00:28]} 25. Nf3 {[%emt 0:14:28]} Nf5 {[%emt 0:01:01]} 26. Re4 {[%emt 0:00:10]} Bb7 {[%emt 0:01:03]} 27. Re1 {[%emt 0:00:59]} Bxf3 {[%emt 0:00:17]} 28. gxf3 {[%emt 0:00:05]} Kf7 {[%emt 0:00:11]} 29. a4 {[%emt 0:01:52]} Rc8 {[%emt 0:05:50]} 30. Nd2 {[%emt 0:00:46]} Rd8 {[%emt 0:06:46]} 31. Kc2 {[%emt 0:00:53]} Rd5 {[%emt 0:03:45]} 32. b4 {[%emt 0:03:22]} h5 {[%emt 0:02:03]} 33. Nc4 {[%emt 0:01:30]} Nh4 {[%emt 0:02:26]} 34. a5 {[%emt 0:06:43]} b5 {[%emt 0:03:05]} 35. Na3 {[%emt 0:00:25]} Ng2 {[%emt 0:03:51]} 36. Rh1 {[%emt 0:01:19]} Nxf4 {[%emt 0:00:24]} 37. c4 {[%emt 0:00:28]} bxc4 {[%emt 0:00:28]} 38. b5 {[%emt 0:02:53]} Ke7 {[%emt 0:01:12]} 39. b6 {[%emt 0:01:45]} axb6 {[%emt 0:00:07]} 40. axb6 {[%emt 0:00:06]} Kd7 {[%emt 0:00:33]} 41. Rb1 {[%emt 0:33:23]} Kc8 {[%emt 0:32:07]} 42. b7+ {[%emt 0:00:16]} Kb8 {[%emt 0:00:05]} 43. Nxc4 {[%emt 0:00:05]} Rc5 {[%emt 0:00:36]} 44. Kc3 {[%emt 0:03:02]} Rc7 {[%emt 0:00:04]} 45. Kd4 {[%emt 0:01:22]} e5+ {[%emt 0:00:49]} 46. Nxe5 {[%emt 0:00:07]} fxe5+ {[%emt 0:00:15]} 47. Kxe5 {[%emt 0:00:07]} Rf7 {[%emt 0:01:03]} 48. Ke4 {[%emt 0:01:17]} h4 {[%emt 0:00:21]} 49. Ke3 {[%emt 0:00:00]} h3 {[%emt 0:00:00]} 50. Rb4 {[%emt 0:00:00]} Nd5+ {[%emt 0:00:00]} 51. Kd4 0-1

[Event "Summer Prague Open A 2020"]
[Site "Prague"]
[Date "2020.08.11"]
[Round "5.8"]
[White "Miedema, David"]
[Black "Pribyl, Viktor"]
[Result "1-0"]
[ECO "A50"]
[WhiteElo "2382"]
[BlackElo "2221"]
[Annotator "ChessBase"]
[PlyCount "74"]
[EventDate "2020.08.08"]
[EventCountry "CZE"]
[SourceTitle "playchess.com"]
[Source "ChessBase"]
[SourceQuality "1"]
[TimeControl "40/5400+30:1800+30"]

1. d4 {[%emt 0:00:00]} Nf6 {[%emt 0:00:00]} 2. c4 {[%emt 0:00:00]} g6 {[%emt 0:00:00]} 3. f3 {[%emt 0:00:00]} c5 {[%emt 0:00:00]} 4. d5 {[%emt 0:01:37]} d6 {[%emt 0:00:10]} 5. e4 {[%emt 0:00:09]} Bg7 {[%emt 0:00:09]} 6. Nc3 {[%emt 0:00:05]} O-O {[%emt 0:01:00]} 7. Bg5 {[%emt 0:00:21]} h6 {[%emt 0:01:55]} 8. Be3 {[%emt 0:01:04]} e6 {[%emt 0:00:10]} 9. Qd2 {[%emt 0:00:35]} h5 {[%emt 0:02:01]} 10. dxe6 {[%emt 0:12:07]} Bxe6 {[%emt 0:07:28]} 11. Nb5 {[%emt 0:14:49]} a6 {[%emt 0:09:07]} 12. Nxd6 {[%emt 0:01:38]} Qb6 {[%emt 0:03:00]} 13. e5 {[%emt 0:15:31]} Nfd7 {[%emt 0:02:39]} 14. f4 {[%emt 0:06:56]} Rd8 {[%emt 0:03:17]} 15. Rd1 {[%emt 0:07:14]} Nxe5 {[%emt 0:26:10]} 16. fxe5 {[%emt 0:08:37]} Bxe5 {[%emt 0:00:08]} 17. Bxc5 {[%emt 0:08:11]} Qxc5 {[%emt 0:00:02]} 18. Nxb7 {[%emt 0:00:06]} Rxd2 {[%emt 0:00:09]} 19. Nxc5 {[%emt 0:00:04]} Rxb2 {[%emt 0:00:20]} 20. Rd8+ {[%emt 0:00:08]} Kg7 {[%emt 0:00:41]} 21. Nxe6+ {[%emt 0:00:30]} fxe6 {[%emt 0:00:01]} 22. Nf3 {[%emt 0:00:30]} Bc3+ {[%emt 0:05:34]} 23. Kd1 {[%emt 0:00:04]} Ra7 {[%emt 0:00:51]} 24. Rd3 {[%emt 0:02:33]} Bf6 {[%emt 0:01:51]} 25. Rb3 {[%emt 0:00:21]} Rb7 {[%emt 0:01:38]} 26. Rxb7+ {[%emt 0:00:30]} Rxb7 {[%emt 0:00:01]} 27. Bd3 {[%emt 0:00:06]} Rb2 {[%emt 0:02:45]} 28. Re1 {[%emt 0:00:04]} Rxa2 {[%emt 0:04:48]} 29. Rxe6 {[%emt 0:00:06]} Ra1+ {[%emt 0:16:30]} 30. Kd2 {[%emt 0:03:42]} Ra2+ {[%emt 0:00:01]} 31. Kd1 {[%emt 0:00:11]} Kf7 {[%emt 0:07:55]} 32. Rd6 {[%emt 0:00:30]} Rxg2 {[%emt 0:04:35]} 33. c5 {[%emt 0:00:06]} Be7 {[%emt 0:00:34]} 34. Ne5+ {[%emt 0:00:31]} Kg7 {[%emt 0:00:24]} 35. Rb6 {[%emt 0:01:55]} Bxc5 {[%emt 0:00:55]} 36. Rxb8 {[%emt 0:00:05]} g5 {[%emt 0:00:38]} 37. Rb7+ {[%emt 0:00:27]} Kg8 {[%emt 0:00:32]} 1-0

[Event "Summer Prague Open A 2020"]
[Site "Prague"]
[Date "2020.08.11"]
[Round "5.9"]
[White "Simek, Petr"]
[Black "Schernthaner, David"]
[Result "1/2-1/2"]
[ECO "A36"]
[WhiteElo "2344"]
[BlackElo "2220"]
[Annotator "ChessBase"]
[PlyCount "77"]
[EventDate "2020.08.08"]
[EventCountry "CZE"]
[SourceTitle "playchess.com"]
[Source "ChessBase"]
[SourceQuality "1"]
[TimeControl "40/5400+30:1800+30"]

1. c4 g6 2. Nc3 c5 3. g3 Bg7 4. Bg2 Nc6 5. a3 d6 6. Rb1 h5 7. h3 Rb8 8. d3 Bf5 9. Bd2 Nf6 10. Nf3 Qc8 11. b4 O-O 12. Ng5 Nd4 13. O-O Nh7 14. Kh2 Re8 15. Nge4 b6 16. b5 Be5 17. e3 Ne6 18. f4 Bg7 19. g4 Bxe4 20. Nxe4 hxg4 21. hxg4 Nc7 22. Qf3 d5 23. cxd5 Nxd5 24. Rfc1 Rd8 25. g5 Nc7 26. Bh3 Qb7 27. Qe2 Qd5 28. Nf2 Qa2 29. d4 cxd4 30. Ra1 d3 31. Rxa2 dxe2 32. a4 Nd5 33. Bg4 Nc3 34. Bxc3 Bxc3 35. Rxe2 Bb4 36. Rc7 Nxg5 37. Rxa7 Nh7 38. Bf3 Nf6 39. Kg2 1/2-1/2

[Event "Summer Prague Open A 2020"]
[Site "Prague"]
[Date "2020.08.11"]
[Round "5.10"]
[White "Buchenau, Frank"]
[Black "Houska, Jiri"]
[Result "1-0"]
[ECO "C07"]
[WhiteElo "2278"]
[BlackElo "2202"]
[Annotator "ChessBase"]
[PlyCount "63"]
[EventDate "2020.08.08"]
[EventCountry "CZE"]
[SourceTitle "playchess.com"]
[Source "ChessBase"]
[SourceQuality "1"]
[TimeControl "40/5400+30:1800+30"]

1. e4 e6 2. d4 d5 3. Nd2 c5 4. Ngf3 Nf6 5. exd5 Nxd5 6. Nb3 cxd4 7. Nbxd4 Be7 8. Bc4 O-O 9. O-O Nc6 10. Nxc6 bxc6 11. Qe2 Qb6 12. a3 Bf6 13. Ne5 Rd8 14. Bd3 Bb7 15. Re1 c5 16. Ng4 Be7 17. c4 Nf6 18. Ne5 Bd6 19. Bf4 Qc7 20. Rad1 Rac8 21. Bg3 g6 22. Bf4 Nd7 23. Nxf7 Bxf4 24. Nxd8 Rxd8 25. Qxe6+ Kg7 26. Qe7+ Kg8 27. Bxg6 hxg6 28. Re6 Nf8 29. Rxg6+ Nxg6 30. Rxd8+ Qxd8 31. Qxd8+ Nf8 32. Qe7 1-0

[Event "Summer Prague Open A 2020"]
[Site "Prague"]
[Date "2020.08.11"]
[Round "5.11"]
[White "Vorisek, Jakub"]
[Black "Malassagne, Raphael"]
[Result "1/2-1/2"]
[ECO "B14"]
[WhiteElo "2205"]
[BlackElo "2305"]
[Annotator "ChessBase"]
[PlyCount "77"]
[EventDate "2020.08.08"]
[EventCountry "CZE"]
[SourceTitle "playchess.com"]
[Source "ChessBase"]
[SourceQuality "1"]
[TimeControl "40/5400+30:1800+30"]

1. e4 c6 2. d4 d5 3. exd5 cxd5 4. c4 Nf6 5. Nc3 e6 6. Nf3 Nc6 7. Bd3 dxc4 8. Bxc4 Be7 9. O-O O-O 10. a3 b6 11. Bg5 Bb7 12. Rc1 Rc8 13. Ba2 Qd6 14. d5 exd5 15. Nxd5 Nxd5 16. Qxd5 Qxd5 17. Bxd5 Bxg5 18. Nxg5 Na5 19. Bxb7 Nxb7 20. h3 Na5 21. Rfd1 h6 22. Ne4 Nb3 23. Rxc8 Rxc8 24. Rd7 Rc1+ 25. Kh2 Rc2 26. Rxa7 Rxb2 27. f3 Nd4 28. Kg3 f5 29. Nd6 Ne2+ 30. Kh2 Nd4 31. Kg3 g5 32. h4 Rd2 33. Nf7 gxh4+ 34. Kxh4 Rxg2 35. Nxh6+ Kf8 36. f4 Ke8 37. Ra4 Rh2+ 38. Kg3 Rxh6 39. Rxd4 1/2-1/2

[Event "Summer Prague Open A 2020"]
[Site "Prague"]
[Date "2020.08.11"]
[Round "5.12"]
[White "Pozdnjakov, Viatcheslav"]
[Black "Richter, Philipp"]
[Result "1-0"]
[ECO "D05"]
[WhiteElo "2300"]
[BlackElo "2127"]
[Annotator "ChessBase"]
[PlyCount "45"]
[EventDate "2020.08.08"]
[EventCountry "CZE"]
[SourceTitle "playchess.com"]
[Source "ChessBase"]
[SourceQuality "1"]
[TimeControl "40/5400+30:1800+30"]

1. d4 {[%emt 0:00:52]} Nf6 {[%emt 0:00:00]} 2. Nf3 {[%emt 0:00:09]} e6 {[%emt 0:00:00]} 3. e3 {[%emt 0:00:39]} c5 {[%emt 0:00:00]} 4. Bd3 {[%emt 0:00:18]} d5 {[%emt 0:00:09]} 5. b3 {[%emt 0:00:20]} Nc6 {[%emt 0:01:29]} 6. Bb2 {[%emt 0:00:29]} Be7 {[%emt 0:00:19]} 7. Nbd2 {[%emt 0:01:56]} cxd4 {[%emt 0:00:37]} 8. exd4 {[%emt 0:00:37]} O-O {[%emt 0:00:43]} 9. a3 {[%emt 0:02:57]} b6 {[%emt 0:04:03]} 10. O-O {[%emt 0:00:37]} Bb7 {[%emt 0:00:18]} 11. Qe2 {[%emt 0:03:17]} Re8 {[%emt 0:02:19]} 12. b4 {[%emt 0:04:04]} Rc8 {[%emt 0:01:29]} 13. Ne5 {[%emt 0:03:56]} Nxe5 {[%emt 0:05:13]} 14. dxe5 {[%emt 0:00:11]} Nd7 {[%emt 0:00:10]} 15. f4 {[%emt 0:03:36]} f5 {[%emt 0:00:41]} 16. Bd4 {[%emt 0:02:08]} Nb8 {[%emt 0:08:21]} 17. g4 {[%emt 0:05:55]} g6 {[%emt 0:01:02]} 18. gxf5 {[%emt 0:01:08]} Nc6 {[%emt 0:06:36]} 19. fxg6 {[%emt 0:06:02]} Nxd4 {[%emt 0:00:10]} 20. Qh5 {[%emt 0:00:53]} hxg6 {[%emt 0:00:33]} 21. Qxg6+ {[%emt 0:01:41]} Kf8 {[%emt 0:00:12]} 22. Qh6+ {[%emt 0:00:18]} Kg8 {[%emt 0:00:50]} 23. Bh7+ {[%emt 0:00:19]} 1-0

[Event "Summer Prague Open A 2020"]
[Site "Prague"]
[Date "2020.08.11"]
[Round "5.13"]
[White "Csiki, Endre"]
[Black "Wedda, Dries"]
[Result "0-1"]
[ECO "B94"]
[WhiteElo "2266"]
[BlackElo "2172"]
[Annotator "ChessBase"]
[PlyCount "68"]
[EventDate "2020.08.08"]
[EventCountry "CZE"]
[SourceTitle "playchess.com"]
[Source "ChessBase"]
[SourceQuality "1"]
[TimeControl "40/5400+30:1800+30"]

1. e4 c5 2. Nf3 d6 3. d4 cxd4 4. Nxd4 Nf6 5. Nc3 a6 6. Bg5 Nbd7 7. Qe2 Qa5 8. Bd2 h5 9. f4 Qc7 10. O-O-O b5 11. g3 e5 12. Nf3 Be7 13. fxe5 Nxe5 14. Bg2 O-O 15. Bf4 Re8 16. Rhf1 b4 17. Bxe5 dxe5 18. Nd5 Nxd5 19. exd5 Bf5 20. Nh4 Bg4 21. Bf3 Bxh4 22. gxh4 Bxf3 23. Rxf3 e4 24. Rf5 Rad8 25. Kb1 g6 26. Rg5 e3 27. Rdg1 Re5 28. Rxh5 Rdxd5 29. Rxe5 Qxe5 30. b3 Rd2 31. Qe1 Qd4 32. Qc1 e2 33. Re1 Rd1 34. Rxe2 Qg1 0-1

[Event "Summer Prague Open A 2020"]
[Site "Prague"]
[Date "2020.08.11"]
[Round "5.14"]
[White "Post, Hugo"]
[Black "Cap, Adam"]
[Result "1-0"]
[ECO "C95"]
[WhiteElo "2203"]
[BlackElo "2278"]
[Annotator "ChessBase"]
[PlyCount "55"]
[EventDate "2020.08.08"]
[EventCountry "CZE"]
[SourceTitle "playchess.com"]
[Source "ChessBase"]
[SourceQuality "1"]
[TimeControl "40/5400+30:1800+30"]

1. e4 {[%emt 0:00:00]} e5 {[%emt 0:00:00]} 2. Nf3 {[%emt 0:00:00]} Nc6 {[%emt 0:00:00]} 3. Bb5 {[%emt 0:00:05]} a6 {[%emt 0:00:04]} 4. Ba4 {[%emt 0:00:04]} Nf6 {[%emt 0:00:06]} 5. O-O {[%emt 0:00:19]} b5 6. Bb3 {[%emt 0:00:09]} Be7 {[%emt 0:00:14]} 7. Re1 {[%emt 0:00:19]} d6 {[%emt 0:00:18]} 8. c3 {[%emt 0:00:23]} O-O {[%emt 0:00:28]} 9. h3 {[%emt 0:00:25]} Nb8 {[%emt 0:03:36]} 10. d4 {[%emt 0:01:21]} Nbd7 {[%emt 0:00:07]} 11. c4 {[%emt 0:04:33]} Bb7 {[%emt 0:03:05]} 12. Qc2 {[%emt 0:16:09]} b4 {[%emt 0:07:17]} 13. Nbd2 {[%emt 0:15:07]} a5 {[%emt 0:04:25]} 14. a4 {[%emt 0:06:08]} Re8 {[%emt 0:02:16]} 15. c5 {[%emt 0:04:40]} exd4 {[%emt 0:08:04]} 16. c6 {[%emt 0:02:14]} d3 {[%emt 0:03:04]} 17. Qc4 {[%emt 0:01:18]} d5 {[%emt 0:00:06]} 18. exd5 {[%emt 0:01:44]} Ba6 {[%emt 0:01:03]} 19. cxd7 {[%emt 0:01:49]} Bxc4 {[%emt 0:00:31]} 20. dxe8=Q+ {[%emt 0:00:09]} Nxe8 {[%emt 0:05:57]} 21. Bxc4 {[%emt 0:01:22]} Nf6 {[%emt 0:03:44]} 22. Ne5 {[%emt 0:02:43]} Bd6 {[%emt 0:05:23]} 23. Ndf3 {[%emt 0:02:05]} Nd7 {[%emt 0:03:17]} 24. Bg5 {[%emt 0:06:22]} f6 {[%emt 0:00:48]} 25. Nc6 {[%emt 0:00:13]} Qf8 {[%emt 0:01:11]} 26. Bd2 {[%emt 0:00:58]} Nb6 {[%emt 0:01:14]} 27. Bxd3 {[%emt 0:02:45]} Qf7 {[%emt 0:00:42]} 28. Bf5 {[%emt 0:00:23]} 1-0

[Event "Summer Prague Open A 2020"]
[Site "Prague"]
[Date "2020.08.11"]
[Round "5.15"]
[White "Mirimanian, Hayk"]
[Black "Babula, Milan"]
[Result "0-1"]
[ECO "C03"]
[WhiteElo "2268"]
[BlackElo "2160"]
[Annotator "ChessBase"]
[PlyCount "64"]
[EventDate "2020.08.08"]
[EventCountry "CZE"]
[SourceTitle "playchess.com"]
[Source "ChessBase"]
[SourceQuality "1"]
[TimeControl "40/5400+30:1800+30"]

1. e4 {[%emt 0:01:03]} e6 {[%emt 0:00:00]} 2. d4 {[%emt 0:00:22]} d5 {[%emt 0:00:00]} 3. Nd2 {[%emt 0:00:03]} Be7 {[%emt 0:00:00]} 4. Bd3 {[%emt 0:00:06]} Nc6 {[%emt 0:02:03]} 5. Ngf3 {[%emt 0:06:02]} Nf6 {[%emt 0:05:16]} 6. c3 {[%emt 0:04:17]} a6 {[%emt 0:04:39]} 7. O-O {[%emt 0:11:25]} b5 {[%emt 0:01:20]} 8. Re1 {[%emt 0:07:38]} Bb7 {[%emt 0:01:30]} 9. e5 {[%emt 0:04:20]} Nd7 {[%emt 0:00:07]} 10. a4 {[%emt 0:01:52]} b4 {[%emt 0:06:38]} 11. a5 {[%emt 0:02:23]} Na7 {[%emt 0:03:56]} 12. c4 {[%emt 0:04:39]} dxc4 {[%emt 0:04:31]} 13. Nxc4 {[%emt 0:02:21]} Nb5 {[%emt 0:00:17]} 14. Be4 {[%emt 0:14:36]} Bxe4 {[%emt 0:05:09]} 15. Rxe4 {[%emt 0:00:05]} Nb8 {[%emt 0:00:04]} 16. Rg4 {[%emt 0:02:41]} Nc6 {[%emt 0:08:16]} 17. Rxg7 {[%emt 0:02:15]} Nbxd4 {[%emt 0:00:13]} 18. Nxd4 {[%emt 0:12:47]} Qxd4 {[%emt 0:00:29]} 19. Qe2 {[%emt 0:01:30]} Rd8 {[%emt 0:08:44]} 20. Be3 {[%emt 0:01:55]} Qd3 {[%emt 0:00:53]} 21. Qxd3 {[%emt 0:09:04]} Rxd3 {[%emt 0:00:01]} 22. Rc1 {[%emt 0:00:32]} Bf8 {[%emt 0:01:19]} 23. Rg4 {[%emt 0:00:57]} h5 {[%emt 0:01:27]} 24. Re4 {[%emt 0:01:03]} Rd5 {[%emt 0:04:18]} 25. Kf1 {[%emt 0:00:54]} Kd7 {[%emt 0:01:33]} 26. Rf4 {[%emt 0:03:45]} Rh7 {[%emt 0:04:50]} 27. Nb6+ {[%emt 0:01:27]} cxb6 {[%emt 0:00:16]} 28. axb6 {[%emt 0:00:32]} Nxe5 {[%emt 0:03:15]} 29. Rc7+ {[%emt 0:00:00]} Kd8 30. Rxb4 Bxb4 31. Bg5+ Ke8 32. b7 Rb5 0-1

[Event "Summer Prague Open A 2020"]
[Site "Prague"]
[Date "2020.08.11"]
[Round "5.16"]
[White "Haack, Kevin"]
[Black "Brejnik, Gustav"]
[Result "1-0"]
[ECO "B10"]
[WhiteElo "2180"]
[BlackElo "2265"]
[Annotator "ChessBase"]
[PlyCount "73"]
[EventDate "2020.08.08"]
[EventCountry "CZE"]
[SourceTitle "playchess.com"]
[Source "ChessBase"]
[SourceQuality "1"]
[TimeControl "40/5400+30:1800+30"]

1. c4 {[%emt 0:00:00]} c6 {[%emt 0:00:00]} 2. e4 {[%emt 0:00:00]} d5 {[%emt 0:00:00]} 3. exd5 {[%emt 0:00:00]} cxd5 {[%emt 0:00:00]} 4. cxd5 {[%emt 0:00:00]} Nf6 {[%emt 0:00:00]} 5. Qa4+ Nbd7 6. Nc3 {[%emt 0:00:09]} g6 {[%emt 0:00:00]} 7. Nf3 {[%emt 0:00:25]} Bg7 {[%emt 0:00:05]} 8. Qb3 {[%emt 0:00:06]} O-O {[%emt 0:00:57]} 9. Bc4 {[%emt 0:00:04]} a6 {[%emt 0:08:02]} 10. a4 {[%emt 0:00:35]} b6 {[%emt 0:00:05]} 11. O-O {[%emt 0:02:36]} Bb7 {[%emt 0:00:11]} 12. d4 {[%emt 0:17:07]} Qc7 {[%emt 0:01:14]} 13. Bg5 {[%emt 0:00:43]} Rac8 {[%emt 0:09:57]} 14. Nd2 {[%emt 0:00:39]} Ng4 {[%emt 0:30:33]} 15. g3 {[%emt 0:02:11]} Bxd4 {[%emt 0:02:49]} 16. Bxe7 {[%emt 0:03:13]} Nc5 {[%emt 0:01:41]} 17. Bxc5 {[%emt 0:05:26]} Qxc5 {[%emt 0:05:56]} 18. Nce4 {[%emt 0:03:39]} Qe7 {[%emt 0:04:35]} 19. Rfe1 {[%emt 0:06:00]} Ne5 {[%emt 0:10:38]} 20. Rad1 {[%emt 0:10:19]} Kg7 {[%emt 0:02:10]} 21. Nf3 {[%emt 0:12:05]} Nxf3+ {[%emt 0:03:05]} 22. Qxf3 {[%emt 0:00:08]} Rxc4 {[%emt 0:00:45]} 23. Nd2 {[%emt 0:00:21]} Qc5 {[%emt 0:01:03]} 24. Nxc4 {[%emt 0:00:26]} Bxd5 {[%emt 0:08:35]} 25. Qf4 {[%emt 0:00:15]} Bf6 {[%emt 0:00:22]} 26. Nxb6 Qxb6 27. Rxd5 {[%emt 0:04:09]} Qxb2 {[%emt 0:01:48]} 28. Qc4 {[%emt 0:01:13]} a5 {[%emt 0:01:03]} 29. Rd7 {[%emt 0:00:43]} h5 {[%emt 0:02:22]} 30. Re8 {[%emt 0:04:53]} Qb1+ {[%emt 0:00:52]} 31. Kg2 {[%emt 0:00:14]} h4 {[%emt 0:01:28]} 32. Rxf8 {[%emt 0:05:05]} h3+ {[%emt 0:00:07]} 33. Kxh3 {[%emt 0:00:21]} Qf5+ {[%emt 0:00:07]} 34. Qg4 {[%emt 0:00:14]} Qxf2 {[%emt 0:00:34]} 35. Rdxf7+ {[%emt 0:00:14]} Kh6 {[%emt 0:00:07]} 36. Rh8+ {[%emt 0:00:08]} Bxh8 {[%emt 0:00:05]} 37. Qh4# {[%emt 0:00:06]} 1-0

[Event "Summer Prague Open A 2020"]
[Site "Prague"]
[Date "2020.08.11"]
[Round "5.17"]
[White "Slampa, Jan"]
[Black "Schmit, Vincent"]
[Result "1-0"]
[ECO "C70"]
[WhiteElo "2264"]
[BlackElo "2157"]
[Annotator "ChessBase"]
[PlyCount "67"]
[EventDate "2020.08.08"]
[EventCountry "CZE"]
[SourceTitle "playchess.com"]
[Source "ChessBase"]
[SourceQuality "1"]
[TimeControl "40/5400+30:1800+30"]

1. e4 {[%emt 0:00:00]} e5 {[%emt 0:00:27]} 2. Nf3 {[%emt 0:00:00]} Nc6 {[%emt 0:00:02]} 3. Bb5 {[%emt 0:00:00]} a6 {[%emt 0:00:40]} 4. Ba4 {[%emt 0:00:00]} g6 {[%emt 0:00:44]} 5. O-O {[%emt 0:06:51]} Bg7 {[%emt 0:00:19]} 6. c3 {[%emt 0:00:40]} Nge7 {[%emt 0:00:36]} 7. d4 {[%emt 0:00:36]} exd4 {[%emt 0:00:34]} 8. cxd4 {[%emt 0:00:17]} d5 {[%emt 0:00:22]} 9. exd5 {[%emt 0:05:48]} Nxd5 {[%emt 0:01:09]} 10. Bg5 {[%emt 0:10:10]} Qd6 {[%emt 0:00:55]} 11. Nc3 {[%emt 0:00:56]} O-O {[%emt 0:02:40]} 12. Nxd5 {[%emt 0:06:37]} Qxd5 {[%emt 0:01:05]} 13. Bb3 {[%emt 0:03:05]} Qd6 {[%emt 0:05:54]} 14. d5 {[%emt 0:05:48]} Ne5 {[%emt 0:03:28]} 15. Nd4 {[%emt 0:12:44]} Ng4 {[%emt 0:28:29]} 16. g3 {[%emt 0:08:08]} Qe5 {[%emt 0:08:21]} 17. Nf3 {[%emt 0:00:06]} Qxb2 {[%emt 0:00:26]} 18. Rb1 {[%emt 0:05:31]} Qa3 {[%emt 0:01:40]} 19. Re1 {[%emt 0:01:26]} Nf6 {[%emt 0:05:22]} 20. Rc1 {[%emt 0:03:33]} Qa5 {[%emt 0:09:29]} 21. Re7 {[%emt 0:07:13]} c6 {[%emt 0:05:27]} 22. dxc6 {[%emt 0:04:39]} bxc6 {[%emt 0:01:19]} 23. Qd6 {[%emt 0:00:01]} Bg4 {[%emt 0:05:03]} 24. Bxf6 {[%emt 0:05:51]} Bxf3 {[%emt 0:00:06]} 25. Rxf7 {[%emt 0:00:20]} Rxf7 {[%emt 0:04:27]} 26. Bxf7+ {[%emt 0:00:02]} Kh8 {[%emt 0:00:07]} 27. Qd4 {[%emt 0:00:03]} h6 {[%emt 0:01:33]} 28. Bxg7+ {[%emt 0:00:02]} Kh7 {[%emt 0:00:02]} 29. Bb3 {[%emt 0:02:10]} Re8 {[%emt 0:01:15]} 30. Qc3 {[%emt 0:01:49]} Qf5 {[%emt 0:02:18]} 31. Bd4 {[%emt 0:01:45]} Rf8 {[%emt 0:01:57]} 32. Qc5 {[%emt 0:01:34]} Qg5 {[%emt 0:02:59]} 33. Qa7+ {[%emt 0:00:14]} Rf7 {[%emt 0:00:14]} 34. Qxf7# 1-0

[Event "Summer Prague Open A 2020"]
[Site "Prague"]
[Date "2020.08.11"]
[Round "5.18"]
[White "Marakovits, Nico"]
[Black "Dietz, Florian"]
[Result "1/2-1/2"]
[ECO "E97"]
[WhiteElo "2105"]
[BlackElo "2262"]
[Annotator "ChessBase"]
[PlyCount "84"]
[EventDate "2020.08.08"]
[EventCountry "CZE"]
[SourceTitle "playchess.com"]
[Source "ChessBase"]
[SourceQuality "1"]
[TimeControl "40/5400+30:1800+30"]

1. d4 Nf6 2. c4 g6 3. Nc3 Bg7 4. e4 d6 5. Nf3 O-O 6. Be2 e5 7. O-O Nc6 8. dxe5 dxe5 9. Bg5 Qxd1 10. Rfxd1 Bg4 11. Bxf6 Bxf6 12. Nd5 Bd8 13. h3 Bxf3 14. Bxf3 Nd4 15. Ne3 h5 16. Rd3 c6 17. Kf1 Be7 18. Be2 Bc5 19. Rb1 a5 20. b3 Kg7 21. Bd1 Rfd8 22. Nc2 Ne6 23. Be2 Bd4 24. Rdd1 Kf6 25. Bf3 Nf4 26. h4 Bc5 27. Be2 Ke7 28. g3 Ne6 29. Rxd8 Rxd8 30. Rd1 Bd4 31. f3 Bc3 32. Rxd8 Kxd8 33. a3 Kc7 34. b4 Nd4 35. Nxd4 Bxd4 36. bxa5 Bc3 37. c5 Kd7 38. a6 bxa6 39. Bxa6 Bd4 40. Bc4 Ke7 41. a4 Bxc5 42. g4 Bb6 1/2-1/2

[Event "Summer Prague Open A 2020"]
[Site "Prague"]
[Date "2020.08.11"]
[Round "5.19"]
[White "Michalczak, Thomas"]
[Black "Kozak, Milos"]
[Result "1-0"]
[ECO "C65"]
[WhiteElo "2245"]
[BlackElo "2174"]
[Annotator "ChessBase"]
[PlyCount "83"]
[EventDate "2020.08.08"]
[EventCountry "CZE"]
[SourceTitle "playchess.com"]
[Source "ChessBase"]
[SourceQuality "1"]
[TimeControl "40/5400+30:1800+30"]

1. e4 e5 2. Nf3 Nc6 3. Bb5 Nf6 4. d3 d6 5. c4 g6 6. Nc3 Bg7 7. O-O O-O 8. Nd5 Nxd5 9. cxd5 Ne7 10. Be3 f5 11. a4 f4 12. Bd2 Bg4 13. h3 Bh5 14. g4 fxg3 15. fxg3 Bxf3 16. Rxf3 Rxf3 17. Qxf3 c6 18. dxc6 bxc6 19. Bc4+ d5 20. exd5 cxd5 21. Ba2 Qb6+ 22. Be3 Qxb2 23. Bxd5+ Kh8 24. Rf1 Rd8 25. Bc4 Qb4 26. Bg5 h6 27. Bf6 Qb6+ 28. Kg2 Bxf6 29. Qxf6+ Qxf6 30. Rxf6 Rd7 31. Re6 Kg7 32. Rxe5 Nf5 33. a5 Nd4 34. a6 Kf6 35. Re8 Re7 36. Rf8+ Kg5 37. h4+ Kh5 38. Kh3 Re3 39. Re8 Rf3 40. Bd5 Rxd3 41. Re5+ Nf5 42. Rxf5+ 1-0